bitfinex-derivatives/quotes_SOLF0:USTF0_20250928
["timestamp","ask_amount","ask_price","bid_price","bid_amount"]
[1759076630377,7.95,204.01,203.91,1.6]
[1759076630673,7.95,204.01,203.94,4.4112]
[1759076630870,7.95,204.01,203.93,1.6]
[1759076631269,7.95,204.03,203.96,4.4108]
[1759076631470,3.45907939,204.02,203.96,4.4108]
[1759076631673,7.95,204.03,203.97,4.4105]
[1759076631874,7.95,204.01,203.97,4.4105]
[1759076632275,7.95,204.03,203.97,4.4105]
[1759076632674,7.95,204.03,203.95,4.4111]
[1759076632867,3.45972184,204.02,203.95,4.4111]
[1759076633071,12.3595,204.03,203.95,4.4111]
[1759076633266,10.6430558,204.01,203.89,1.6]
[1759076633471,7.95,203.99,203.89,1.6]
[1759076634074,12.3605,203.99,203.92,4.4117]
[1759076634270,7.95,203.99,203.89,68.6375]
[1759076634473,7.95,203.99,203.9,1.59]
[1759076634775,7.95,203.99,203.93,4.4114]
[1759076634971,7.95,203.99,203.9,1.59]
[1759076635482,2.6930558,204.01,203.87,358.51]
[1759076635681,7.95,203.99,203.87,358.51]
[1759076635882,12.3608,203.97,203.89,4.4123]
[1759076636278,7.95,203.97,203.87,358.51]
[1759076636478,7.95,203.97,203.88,1.59]
[1759076636985,10.6430558,203.98,203.89,1.59]
[1759076637485,7.95,203.96,203.88,4.4126]
[1759076638978,12.3611,203.96,203.88,4.4126]
[1759076639180,7.95,203.96,203.88,4.4126]
[1759076639375,3.46412261,203.95,203.88,4.4126]
[1759076639579,7.95,203.94,203.88,4.4126]
[1759076640079,2.6930558,203.95,203.86,125.8131]
[1759076640282,2.6930558,203.92,203.86,121.4]
[1759076642185,7.95,203.93,203.86,121.4]
[1759076642377,7.95,203.93,203.87,1.59]
[1759076642886,7.95,203.93,203.87,6.0027]
[1759076643086,7.95,203.93,203.87,1.59]
[1759076644688,10.6430558,203.97,203.87,1.59]
[1759076645886,10.6430558,203.97,203.9,4.412]
[1759076646074,7.95,203.97,203.9,6.002]
[1759076646274,3.4712383,203.96,203.9,4.412]
[1759076646481,7.95,203.98,203.87,4.4127]
[1759076646680,7.95,203.96,203.86,122.99]
[1759076646982,7.95,203.96,203.88,4.4126]
[1759076647574,7.95,203.96,203.86,122.99]
[1759076648288,3.47500235,203.95,203.86,122.99]
[1759076648578,7.95,203.96,203.86,122.99]
[1759076648789,3.47529477,203.95,203.86,1.59]
[1759076648980,11.42529477,203.94,203.86,1.59]
[1759076649182,7.95,203.94,203.87,1.59]
[1759076649384,2.6930558,204.0,203.88,68.6394]
[1759076649582,8.24009429,204.06,203.91,1.59]
[1759076649583,11.42675017,203.99,203.91,1.59]
[1759076649782,7.95,203.99,203.91,122.99]
[1759076649980,7.95,203.99,203.95,4.4109]
[1759076650187,7.95,203.99,203.95,6.0009]
[1759076650685,7.95,203.99,203.95,1.59]
[1759076651374,7.95,203.99,203.95,6.001]
[1759076651574,7.58,204.04,203.95,1.58]
[1759076651778,3.47736599,204.03,203.95,1.58]
[1759076651977,7.58,204.04,203.95,1.58]
[1759076652186,3.47714156,204.03,203.95,122.98]
[1759076652375,7.58,204.04,203.95,122.98]
[1759076652688,3.4780487,204.03,203.99,1.58]
[1759076652887,7.58,204.04,203.99,1.58]
[1759076653087,3.4780487,204.03,203.99,1.58]
[1759076653289,4.4086,204.07,203.99,1.58]
[1759076653489,11.05916865,204.06,203.95,122.98]
[1759076653688,3.47916865,204.05,203.95,122.98]
[1759076653988,3.47916865,204.04,203.97,4.4107]
[1759076654188,3.47916865,204.03,203.95,122.98]
[1759076654389,7.58,204.06,203.95,122.98]
[1759076654581,3.47912103,204.05,203.95,122.98]
[1759076654777,3.47912103,204.04,203.95,122.98]
[1759076655085,3.47912103,204.03,203.96,189.9946]
[1759076655284,7.58,204.1,203.97,72.8844558]
[1759076655489,3.47825875,204.09,203.97,72.8844558]
[1759076655792,3.47825875,204.08,203.97,71.3044558]
[1759076655982,3.47825875,204.07,203.98,1.58]
[1759076656183,7.58,204.05,204.01,4.4098]
[1759076656384,7.58,204.1,204.01,4.4098]
[1759076656578,3.47776859,204.09,204.0,1.58]
[1759076656789,2.6930558,204.11,204.0,1.58]
[1759076656790,11.05776859,204.08,204.0,1.58]
[1759076657093,3.47776859,204.07,204.0,1.58]
[1759076657390,3.47776859,204.06,204.0,1.58]
[1759076657576,7.58,204.08,204.0,1.58]
[1759076657781,7.58,204.06,203.99,4.4101]
[1759076659790,3.47631619,204.05,203.96,1.58]
[1759076659991,7.58,204.07,203.96,1.58]
[1759076660286,7.58,204.05,204.01,1.58]
[1759076661188,7.58,204.05,204.02,4.4094]
[1759076663289,11.9879,204.1,204.02,4.4094]
[1759076663591,3.47368618,204.09,204.02,4.4094]
[1759076663793,11.9879,204.1,204.02,4.4094]
[1759076663990,3.47365219,204.09,204.0,4.41]
[1759076664187,3.47396452,204.08,203.98,1.58]
[1759076664392,7.92,204.07,203.98,1.58]
[1759076665187,3.47388948,204.06,203.98,1.58]
[1759076665493,12.3287,204.07,203.98,5.9903]
[1759076665690,7.92,204.05,203.98,5.9903]
[1759076665891,7.92,204.05,203.95,125.6330558]
[1759076666188,12.3291,204.05,203.97,4.4105]
[1759076666392,7.92,204.11,203.99,1.58]
[1759076666593,3.47300627,204.1,204.03,5.9892]
[1759076666789,7.92,204.11,204.03,5.9892]
[1759076666790,3.47300627,204.09,204.03,5.9892]
[1759076666990,7.92,204.11,204.03,1.58]
[1759076667187,11.39292588,204.1,204.05,5.989]
[1759076667390,7.92,204.1,204.05,5.989]
[1759076668190,7.92,204.12,204.02,1.58]
[1759076668394,7.92,204.1,204.02,1.58]
[1759076669295,7.92,204.1,204.07,4.4085]
[1759076669696,7.92,204.1,204.03,14.98588663]
[1759076669896,7.92,204.1,204.02,1.58]
[1759076671592,7.92,204.1,204.02,5.9894]
[1759076671790,2.6930558,204.12,203.93,68.6221]
[1759076671996,3.48502109,204.11,203.97,109.72]
[1759076672296,7.92,204.09,203.97,109.72]
[1759076672495,51.1530558,204.12,203.97,109.72]
[1759076672496,2.6930558,204.12,203.97,109.72]
[1759076672693,7.92,204.1,203.97,109.72]
[1759076672893,7.92,204.08,203.97,109.72]
[1759076673094,7.92,204.08,203.97,1.58]
[1759076673494,12.3285,204.08,204.0,4.41]
[1759076673692,7.92,204.08,203.97,1.58]
[1759076673895,7.92,204.08,203.94,67.66]
[1759076673896,2.6930558,204.06,203.94,67.66]
[1759076674095,7.92,204.05,203.94,67.66]
[1759076674293,1.72237756,204.03,203.95,4.411]
[1759076674699,9.64237756,204.05,203.96,7.71327756]
[1759076674894,7.92,204.05,203.96,7.71327756]
[1759076675200,1.72237756,204.04,203.96,7.71327756]
[1759076675400,1.72237756,204.04,203.96,5.9909]
[1759076675601,1.72237756,204.04,203.97,4.4105]
[1759076675801,1.72237756,204.04,203.96,1.58]
[1759076675802,1.72237756,204.04,203.96,3.30237756]
[1759076676101,1.72237756,204.04,203.97,4.4106]
[1759076676705,7.92,204.03,203.96,1.58]
[1759076678702,9.64237756,204.03,203.96,1.58]
[1759076679302,1.72237756,204.01,203.92,1.58]
[1759076679504,7.92,204.0,203.92,1.58]
[1759076680003,7.92,204.0,203.92,5.9917]
[1759076680205,7.92,204.0,203.92,1.58]
[1759076680606,7.92,204.0,203.94,4.4112]
[1759076680901,9.64237756,204.03,203.95,1.58]
[1759076682707,9.64237756,204.03,203.95,70.1964]
[1759076683502,9.64237756,204.03,204.0,4.41]
[1759076683707,1.72237756,204.06,203.98,1.58]
[1759076683902,9.64237756,204.08,203.98,1.58]
[1759076684099,7.92,204.05,203.99,4.4102]
[1759076684502,7.92,204.05,203.98,1.58]
[1759076685307,1.72237756,204.04,203.98,1.58]
[1759076685810,1.72237756,204.04,204.0,4.4099]
[1759076686010,7.92,204.03,204.0,4.4099]
[1759076686204,7.92,204.03,203.95,70.33877756]
[1759076686205,7.92,204.03,203.97,70.19]
[1759076686401,7.92,204.03,204.0,4.4098]
[1759076686700,7.92,204.03,203.96,68.6124]
[1759076686904,7.92,204.03,203.97,1.58]
[1759076688610,7.92,204.03,204.0,4.4099]
[1759076688907,7.92,204.03,203.97,1.58]
[1759076690707,7.92,204.03,203.99,4.4101]
[1759076691212,7.92,204.03,203.97,4.4106]
[1759076691406,7.92,204.03,203.95,122.88]
[1759076691712,7.92,204.03,203.95,1.58]
[1759076691906,7.92,204.03,203.96,4.4109]
[1759076692505,1.72237756,204.04,203.93,1.72237756]
[1759076692506,7.92,204.01,203.93,1.72237756]
[1759076692909,9.64237756,204.01,203.94,4.4113]
[1759076693104,4.4095,204.03,203.92,14.67275995]
[1759076693105,9.64237756,203.99,203.92,14.67275995]
[1759076693313,1.72237756,203.97,203.91,1.58]
[1759076694204,7.92,203.99,203.91,1.58]
[1759076694407,9.44237756,203.97,203.91,1.58]
[1759076694609,1.72237756,203.97,203.92,4.4116]
[1759076694808,7.72,203.96,203.92,4.4116]
[1759076695111,1.72237756,203.97,203.92,4.4116]
[1759076695307,7.72,203.94,203.9,4.4122]
[1759076695708,1.72237756,203.95,203.9,4.4122]
[1759076695911,7.72,203.93,203.9,4.4122]
[1759076696112,7.72,203.94,203.9,4.4122]
[1759076696306,1.72237756,203.95,203.9,4.4122]
[1759076696504,7.72,203.94,203.9,4.4122]
[1759076698008,9.44237756,203.93,203.87,127.2927]
[1759076698213,9.44237756,203.93,203.87,4.4127]
[1759076701015,7.72,203.9,203.84,5.28168836]
[1759076701221,7.72,203.88,203.84,5.28168836]
[1759076701511,7.72,203.88,203.84,6.86168836]
[1759076701913,7.72,203.88,203.84,0.86838836]
[1759076702114,1.72237756,203.87,203.81,4.414]
[1759076702315,9.44237756,203.85,203.79,121.32]
[1759076703017,9.44237756,203.85,203.79,125.7346]
[1759076703815,9.44237756,203.85,203.79,4.4146]
[1759076704816,7.72,203.85,203.79,4.4146]
[1759076705020,9.44237756,203.85,203.79,4.4146]
[1759076708920,1.72237756,203.85,203.8,4.4142]
[1759076710018,4.4117,203.93,203.78,70.39617756]
[1759076710214,9.44237756,203.88,203.8,1.72237756]
[1759076710617,7.72,203.88,203.82,1.72237756]
[1759076710818,7.72,203.92,203.85,1.59]
[1759076711621,7.72,203.92,203.86,4.4129]
[1759076712229,7.64,203.94,203.86,3.31237756]
[1759076712423,7.64,203.94,203.88,1.72237756]
[1759076712627,7.64,203.94,203.88,3.31237756]
[1759076713126,7.64,203.94,203.92,4.4118]
[1759076713527,7.64,203.94,203.88,3.31237756]
[1759076714822,1.72237756,203.97,203.9,4.4122]
[1759076715125,7.64,203.96,203.9,4.4122]
[1759076716928,7.64,203.96,203.92,4.4117]
[1759076717127,7.64,203.96,203.9,1.72237756]
[1759076717821,7.64,203.98,203.88,1.72237756]
[1759076718027,7.64,203.96,203.88,1.72237756]
[1759076719728,7.64,203.96,203.89,4.4124]
[1759076722731,7.64,203.96,203.87,6.0028]
[1759076722934,7.64,203.96,203.87,7.72517756]
[1759076723131,7.64,203.94,203.87,4.4128]
[1759076723525,7.64,203.94,203.88,4.4125]
[1759076724334,1.72237756,203.93,203.88,4.4125]
[1759076724726,1.72237756,203.93,203.86,4.413]
[1759076724931,7.59,203.92,203.86,4.413]
[1759076725536,7.59,203.92,203.85,3.31237756]
[1759076726128,7.59,203.92,203.9,4.4122]
[1759076728845,7.59,203.92,203.88,1.59]
[1759076729528,7.59,203.92,203.89,4.4124]
[1759076730337,1.72237756,203.96,203.88,1.59]
[1759076730533,7.59,204.02,203.91,68.6313]
[1759076730840,7.59,204.02,203.97,4.4105]
[1759076731043,7.59,204.03,203.97,4.4105]
[1759076731338,7.59,204.01,203.97,4.4105]
[1759076732239,9.31237756,204.03,203.97,4.4105]
[1759076734339,7.59,204.0,203.94,4.4111]
[1759076734648,9.31237756,204.0,203.92,122.87]
[1759076735141,7.59,204.0,203.97,4.4107]
[1759076735343,7.59,204.02,203.98,1.59]
[1759076736445,7.59,204.05,203.99,4.4103]
[1759076736946,7.59,204.05,203.98,1.59]
[1759076738644,7.59,204.05,203.97,4.4105]
[1759076741540,7.59,204.05,203.98,4.4103]
[1759076745551,4.4099,204.01,203.91,1.59]
[1759076745756,7.59,204.02,203.91,1.59]
[1759076746055,7.59,203.99,203.91,1.59]
[1759076746259,7.59,203.99,203.93,4.4114]
[1759076746654,7.59,203.99,203.91,1.59]
[1759076746859,7.59,203.99,203.88,70.2305]
[1759076747059,2.69093895,203.98,203.9,70.2236]
[1759076747259,7.59,203.99,203.9,70.2236]
[1759076747758,2.69093895,204.01,203.94,4.4113]
[1759076747954,7.59,204.0,203.94,4.4113]
[1759076749556,7.59,204.0,203.91,4.4119]
[1759076750556,12.0002,204.0,203.91,4.4119]
[1759076751463,4.4105,203.99,203.91,4.4119]
[1759076751669,7.59,203.98,203.91,4.4119]
[1759076752068,4.4107,203.97,203.9,1.59]
[1759076752269,7.59,203.96,203.89,4.4124]
[1759076753567,7.59,203.96,203.9,4.412]
[1759076755765,7.59,203.96,203.92,1.58]
[1759076756766,8.07,203.97,203.92,1.58]
[1759076756966,2.69093895,203.98,203.92,1.58]
[1759076757169,8.07,203.97,203.92,1.58]
[1759076757367,2.69093895,203.98,203.92,1.58]
[1759076757665,8.07,203.98,203.92,1.58]
[1759076757867,8.07,204.02,203.92,1.58]
[1759076758066,3.50478506,204.01,203.92,1.58]
[1759076758263,3.50478506,204.0,203.92,1.58]
[1759076758476,8.07,204.02,203.92,1.58]
[1759076758675,3.504581,204.01,203.95,4.4109]
[1759076758868,11.574581,204.0,203.95,5.9909]
[1759076759069,8.07,204.02,203.95,1.58]
[1759076759270,3.50458268,204.01,203.95,1.58]
[1759076759475,8.07,203.99,203.95,1.58]
[1759076760177,8.07,204.0,203.94,4.4112]
[1759076760367,3.47024492,203.99,203.94,4.4112]
[1759076760572,8.07,204.0,203.94,4.4112]
[1759076761370,3.4699646,203.99,203.94,4.4112]
[1759076761572,8.07,204.0,203.94,4.4112]
[1759076761771,3.47017104,203.99,203.94,4.4112]
[1759076761973,8.07,204.0,203.94,4.4112]
[1759076762173,8.07,203.98,203.94,4.4112]
[1759076762379,8.07,204.0,203.94,4.4112]
[1759076762676,3.47036031,203.99,203.94,4.4112]
[1759076762877,8.07,204.0,203.94,4.4112]
[1759076763274,8.07,204.0,203.92,1.58]
[1759076763476,8.07,204.04,203.94,1.58]
[1759076763680,3.47011329,204.03,203.94,1.58]
[1759076763980,8.07,204.04,203.94,1.58]
[1759076764179,3.46979994,204.03,203.94,1.58]
[1759076764477,8.07,204.04,203.94,1.58]
[1759076764677,3.46962088,204.03,203.98,4.4103]
[1759076764876,8.07,204.05,203.98,4.4103]
[1759076765080,3.46962166,204.04,203.98,4.4103]
[1759076765274,3.46962166,204.03,203.98,5.9903]
[1759076765475,8.07,204.05,203.98,5.9903]
[1759076765676,3.4694742,204.04,203.98,5.9903]
[1759076765876,8.07,204.02,203.98,5.9903]
[1759076767283,8.07,204.04,203.98,1.58]
[1759076767485,8.07,204.02,203.96,4.4109]
[1759076767879,8.07,204.02,203.93,1.58]
[1759076768084,8.07,204.0,203.93,1.58]
[1759076768383,8.07,204.0,203.93,5.9914]
[1759076769987,8.07,204.0,203.93,4.4114]
[1759076770283,8.07,204.0,203.93,5.9914]
[1759076770478,8.07,204.0,203.94,4.4112]
[1759076770679,8.07,204.0,203.93,1.58]
[1759076771683,8.07,204.0,203.96,4.4108]
[1759076772285,8.07,204.0,203.96,5.9808]
[1759076775183,4.4094,204.03,203.94,4.4113]
[1759076775389,10.92439572,204.02,203.94,4.4113]
[1759076775683,3.47439572,204.01,203.94,4.4113]
[1759076775884,3.47439572,204.0,203.93,68.6245]
[1759076776084,7.45,204.03,203.94,1.57]
[1759076776287,3.47500163,204.02,203.94,1.57]
[1759076776487,3.47500163,204.01,203.94,1.57]
[1759076776688,3.47500163,204.0,203.94,1.57]
[1759076776891,7.45,204.03,203.94,1.57]
[1759076777183,7.45,204.01,203.9,1.57]
[1759076777379,3.47489241,204.0,203.9,1.57]
[1759076777584,7.45,203.98,203.9,1.57]
[1759076778090,7.45,203.99,203.93,4.4115]
[1759076778288,3.47565289,203.98,203.93,4.4115]
[1759076778591,7.45,203.99,203.93,4.4115]
[1759076778891,7.45,203.97,203.91,4.4119]
[1759076779092,7.45,203.95,203.91,5.9819]
[1759076779489,7.45,204.0,203.91,5.9819]
[1759076779688,7.45,203.97,203.91,5.9819]
[1759076779993,7.45,203.95,203.91,5.9819]
[1759076781792,7.45,203.97,203.89,4.4124]
[1759076782092,7.45,203.95,203.89,4.4124]
[1759076782488,7.45,203.95,203.91,4.4118]
[1759076782687,7.45,204.0,203.87,1.57]
[1759076782890,3.47548324,203.99,203.87,1.57]
[1759076783192,10.92548324,203.98,203.92,4.4116]
[1759076783393,3.47548324,203.97,203.92,4.4116]
[1759076783590,4.4102,204.0,203.92,5.9916]
[1759076783591,8.04,203.96,203.92,5.9916]
[1759076783793,8.04,203.98,203.92,5.9916]
[1759076783995,3.47508667,203.97,203.92,4.4116]
[1759076784187,8.04,203.95,203.92,4.4116]
[1759076784694,8.04,203.98,203.92,4.4116]
[1759076784990,3.47524046,203.97,203.86,16.51660722]
[1759076785191,3.47524046,203.96,203.86,16.51660722]
[1759076785391,8.04,203.94,203.86,16.51660722]
[1759076786589,8.04,203.94,203.88,4.4126]
[1759076788396,8.04,203.94,203.86,5.993]
[1759076788597,8.04,203.92,203.86,5.993]
[1759076792992,8.04,203.92,203.86,4.413]
[1759076793192,8.04,203.92,203.84,4.4134]
[1759076793998,8.04,203.9,203.84,4.4134]
[1759076795502,71.30943895,203.95,203.86,4.413]
[1759076795503,10.73093895,203.95,203.86,4.413]
[1759076795703,8.04,203.93,203.83,1.58]
[1759076795898,8.04,203.91,203.83,1.58]
[1759076796300,8.04,203.91,203.84,4.4134]
[1759076797404,8.04,203.95,203.85,1.58]
[1759076797605,8.04,203.95,203.88,1.58]
[1759076798206,8.04,203.95,203.89,1.72301432]
[1759076798703,8.04,203.95,203.91,4.4118]
[1759076798908,8.04,203.95,203.92,1.58]
[1759076799312,9.76301432,204.0,203.93,4.4116]
[1759076799609,3.44307309,203.99,203.93,4.4116]
[1759076799908,11.48307309,203.98,203.94,1.58]
[1759076800111,8.04,203.98,203.94,1.58]
[1759076801310,8.04,203.98,203.93,4.4116]
[1759076801505,0.56636105,204.05,203.95,4.4111]
[1759076801506,8.04,204.04,203.95,4.4111]
[1759076801710,8.04,204.02,203.95,4.4111]
[1759076801912,3.44217875,204.01,203.95,4.4111]
[1759076802713,8.04,204.02,203.95,4.4111]
[1759076803917,8.04,204.02,203.96,4.4107]
[1759076804116,9.76301432,204.02,203.96,4.4107]
[1759076805813,1.72301432,203.98,203.9,1.58]
[1759076806112,8.04,203.97,203.9,1.58]
[1759076806514,1.72301432,203.96,203.9,1.58]
[1759076807319,8.04,203.95,203.86,122.68]
[1759076807518,8.04,203.95,203.87,1.72301432]
[1759076807723,8.04,203.95,203.88,1.58]
[1759076808723,1.72301432,203.98,203.91,1.58]
[1759076808927,8.04,203.97,203.91,1.58]
[1759076809922,1.72301432,203.96,203.88,4.4126]
[1759076810230,8.04,203.95,203.87,3.30301432]
[1759076810527,8.04,203.95,203.89,4.4122]
[1759076810919,8.04,203.95,203.88,1.58]
[1759076812333,8.04,203.95,203.88,5.9924]
[1759076812722,8.04,203.95,203.88,1.58]
[1759076813728,8.04,203.95,203.89,4.4122]
[1759076814529,9.76301432,203.95,203.89,4.4122]
[1759076815021,14.17411432,203.95,203.84,1.62]
[1759076815224,3.44532738,203.94,203.84,1.62]
[1759076815427,1.72301432,203.97,203.9,4.412]
[1759076815628,11.1848815,203.96,203.9,4.412]
[1759076815825,7.74,203.96,203.9,4.412]
[1759076820436,7.74,204.01,203.91,71.97221432]
[1759076820735,3.47898685,204.0,203.91,71.97221432]
[1759076820933,3.47898685,203.99,203.91,71.97221432]
[1759076821232,7.74,204.01,203.91,71.97221432]
[1759076821432,3.47908885,204.0,203.91,71.97221432]
[1759076821629,3.47908885,203.99,203.95,4.4111]
[1759076821830,7.74,204.01,203.95,4.4111]
[1759076822024,7.74,203.99,203.95,4.4111]
[1759076822231,7.74,204.01,203.95,4.4111]
[1759076822432,3.47934757,204.0,203.95,4.4111]
[1759076822735,9.46301432,204.02,203.96,1.62]
[1759076822934,11.21927903,204.01,203.92,70.2478]
[1759076823130,3.47927903,204.0,203.92,70.2478]
[1759076823329,7.74,204.01,203.92,70.2478]
[1759076823526,3.4791793,204.0,203.92,70.2478]
[1759076823731,7.74,204.01,203.92,70.2478]
[1759076824336,7.74,204.01,203.96,4.4108]
[1759076824629,7.74,204.02,203.95,1.62]
[1759076824836,3.47835655,204.01,203.95,3.34301432]
[1759076825136,7.74,204.02,203.95,3.34301432]
[1759076825336,3.47783315,204.01,203.95,3.34301432]
[1759076825536,7.74,204.02,203.96,1.62]
[1759076826138,0.56636105,204.05,203.99,4.4101]
[1759076826337,3.47752012,204.04,203.99,4.4101]
[1759076826529,7.74,204.02,203.99,4.4101]
[1759076826725,7.74,204.04,203.99,4.4101]
[1759076826930,7.74,204.02,203.99,4.4101]
[1759076827133,0.56636105,204.05,203.99,4.4101]
[1759076827328,7.74,204.03,203.99,4.4101]
[1759076827532,0.56636105,204.05,203.99,4.4101]
[1759076827735,7.74,204.03,203.99,4.4101]
[1759076827936,7.74,204.04,203.99,4.4101]
[1759076828236,7.74,204.02,203.99,4.4101]
[1759076828932,7.74,204.04,203.99,4.4101]
[1759076829138,7.74,204.02,203.99,4.4101]
[1759076831841,7.31,204.03,203.96,6.0307]
[1759076832037,1.72301432,204.02,203.93,1.54]
[1759076832242,1.72301432,204.0,203.93,1.54]
[1759076832436,7.31,203.99,203.93,1.54]
[1759076832832,7.31,203.99,203.94,4.4113]
[1759076833037,1.72301432,204.0,203.94,4.4113]
[1759076833437,7.31,203.98,203.94,4.4113]
[1759076833641,3.47522079,203.99,203.94,4.4113]
[1759076833642,7.31,203.99,203.94,4.4113]
[1759076834235,1.72301432,204.0,203.94,4.4113]
[1759076834440,7.31,203.98,203.92,4.4118]
[1759076834841,9.03301432,203.98,203.92,4.4118]
[1759076836142,7.31,203.97,203.93,5.9514]
[1759076836343,7.31,203.97,203.91,1.54]
[1759076837040,7.31,203.97,203.91,3.26301432]
[1759076837638,7.31,203.97,203.94,5.9512]
[1759076838445,7.31,203.98,203.91,5.9518]
[1759076839048,7.31,203.98,203.92,4.4116]
[1759076840344,7.31,203.96,203.92,4.4116]
[1759076840549,1.72301432,203.97,203.92,4.4116]
[1759076841047,7.31,203.96,203.92,4.4116]
[1759076841346,7.31,203.96,203.9,4.4122]
[1759076841541,7.31,203.94,203.9,5.9522]
[1759076841749,7.31,203.96,203.9,5.9522]
[1759076842042,68.5985,204.01,203.87,1.72301432]
[1759076842043,7.31,203.94,203.87,1.72301432]
[1759076843550,7.31,203.94,203.88,4.4126]
[1759076844746,3.48209776,203.93,203.88,4.4126]
[1759076845049,8.01,203.94,203.86,1.54]
[1759076845252,3.48213206,203.93,203.86,1.54]
[1759076845443,8.01,203.94,203.9,1.57]
[1759076845748,8.01,203.94,203.89,4.4123]
[1759076845749,1.72301432,203.95,203.89,4.4123]
[1759076845942,3.48099758,203.94,203.89,4.4123]
[1759076846140,8.01,203.94,203.89,5.9823]
[1759076846342,1.72301432,203.95,203.89,5.9823]
[1759076846637,3.48069014,203.94,203.89,5.9823]
[1759076846846,8.01,203.94,203.89,5.9823]
[1759076847046,1.72301432,203.95,203.89,5.9823]
[1759076847351,3.48084564,203.94,203.89,5.9823]
[1759076847647,8.01,203.94,203.89,5.9823]
[1759076847848,8.01,203.94,203.87,6.13581432]
[1759076848147,8.01,203.94,203.87,4.4128]
[1759076848850,8.01,203.92,203.85,5.20321618]
[1759076850851,12.4219,203.92,203.85,5.20321618]
[1759076851553,9.73301432,203.92,203.85,5.20321618]
[1759076851856,9.73301432,203.92,203.85,4.4132]
[1759076852048,14.14491432,203.92,203.83,7.70671432]
[1759076855650,5.49339619,204.01,203.95,68.6178]
[1759076855851,13.73349049,204.13,203.93,68.6225]
[1759076855852,8.24009429,204.2,204.03,7.73]
[1759076856053,1.72301432,204.17,204.07,1.72301432]
[1759076856253,6.12941432,204.17,204.07,1.72301432]
[1759076856449,1.72301432,204.15,204.06,1.72301432]
[1759076856854,1.72301432,204.15,204.06,6.13171432]
[1759076857850,8.01,204.14,204.06,6.13171432]
[1759076860047,8.01,204.14,204.08,1.72301432]
[1759076860245,8.01,204.14,204.08,4.4082]
[1759076863255,8.01,204.14,204.06,7.73]
[1759076863461,8.01,204.14,204.06,10.4179099]
[1759076864355,8.01,204.14,204.07,4.4085]
[1759076864960,8.01,204.14,204.06,7.73]
[1759076866162,8.01,204.14,204.02,83.49126892]
[1759076866362,8.01,204.14,204.03,2.6879099]
[1759076867462,8.01,204.14,204.05,4.4089]
[1759076868465,8.01,204.14,204.04,7.73]
[1759076868669,8.01,204.12,204.04,7.73]
[1759076870162,8.01,204.12,204.02,4.4094]
[1759076870965,7.0951099,204.13,204.02,12.1394]
[1759076871267,8.01,204.12,204.02,12.1394]
[1759076871468,8.01,204.12,204.03,4.4092]
[1759076871866,8.01,204.12,204.05,4.4089]
[1759076872175,8.01,204.12,204.05,12.1389]
[1759076878772,7.36,204.1,203.97,11.88794427]
[1759076878986,2.6879099,204.08,203.97,7.86]
[1759076879180,7.36,204.03,203.97,7.86]